bitfinex/quotes_BTCUSD_20251114
["timestamp","ask_amount","ask_price","bid_price","bid_amount"]
[1763114207911,0.20642682,96887.0,96883.0,0.20643456]
[1763114208140,0.20642682,96887.0,96883.0,0.0232]
[1763114208331,0.00045634,96891.0,96883.0,0.0232]
[1763114208531,0.20642791,96887.0,96883.0,0.0232]
[1763114208737,0.20642817,96886.0,96883.0,0.0232]
[1763114208975,0.20642791,96887.0,96883.0,0.0232]
[1763114209116,0.20643243,96884.0,96883.0,0.0232]
[1763114210199,0.20643058,96885.0,96883.0,0.0232]
[1763114210385,0.20643243,96884.0,96883.0,0.0232]
[1763114210877,0.20643669,96882.0,96880.0,0.01238]
[1763114211022,0.00045634,96891.0,96874.0,0.2179335]
[1763114211222,0.00045634,96891.0,96876.0,0.20644933]
[1763114211443,0.20643787,96882.0,96875.0,0.20645161]
[1763114211619,0.20644137,96880.0,96877.0,0.20644678]
[1763114211828,0.20644137,96880.0,96877.0,0.20644724]
[1763114212055,0.20644308,96879.0,96878.0,0.0232]
[1763114212493,0.20687599,96891.0,96878.0,0.0232]
[1763114212720,0.20642608,96887.0,96879.0,0.20644308]
[1763114212943,0.20642608,96887.0,96883.0,0.20643444]
[1763114213509,0.2064303,96885.0,96884.0,0.01148]
[1763114213912,0.00045634,96891.0,96884.0,0.01148]
[1763114214158,0.2064303,96885.0,96884.0,0.01148]
[1763114214560,0.2064286,96886.0,96884.0,0.01148]
[1763114214766,0.20642581,96889.0,96885.0,0.20642836]
[1763114214968,0.00045634,96891.0,96890.0,0.20641965]
[1763114215868,0.00045634,96891.0,96890.0,0.22559775]
[1763114216057,0.00045634,96891.0,96890.0,0.20641965]
[1763114217248,0.00045634,96891.0,96890.0,0.22559775]
[1763114217449,0.00045634,96891.0,96890.0,0.20641965]
[1763114217924,0.00045634,96891.0,96890.0,0.22641965]
[1763114218361,0.00045634,96891.0,96890.0,0.20641965]
[1763114219165,0.00045634,96891.0,96882.0,0.20643492]
[1763114219166,0.00045634,96891.0,96883.0,0.01148]
[1763114219376,0.00045634,96891.0,96889.0,0.01148]
[1763114219578,0.20687598,96891.0,96889.0,0.01148]
[1763114220141,0.20687598,96891.0,96890.0,0.001]
[1763114220344,0.00045634,96891.0,96889.0,0.21790151]
[1763114220547,0.20687525,96891.0,96889.0,0.01148]
[1763114220746,0.20643123,96885.0,96883.0,0.01148]
[1763114221301,0.00245634,96891.0,96890.0,0.02]
[1763114221641,0.00245634,96891.0,96889.0,0.20642022]
[1763114221883,0.00145634,96891.0,96890.0,0.21813965]
[1763114222028,0.00145634,96891.0,96890.0,0.01172]
[1763114222251,0.00145634,96891.0,96886.0,0.20642722]
[1763114222577,0.20642178,96889.0,96880.0,0.24871714]
[1763114222747,0.20642178,96889.0,96884.0,0.20643139]
[1763114222941,0.20642178,96889.0,96885.0,0.20642949]
[1763114223181,0.00045634,96891.0,96885.0,0.20642949]
[1763114223360,0.00045634,96891.0,96889.0,0.20642076]
[1763114223767,0.00045634,96891.0,96890.0,0.01172]
[1763114225598,0.00045634,96891.0,96890.0,0.03172]
[1763114229337,0.00045634,96891.0,96890.0,0.01172]
[1763114232628,0.20643034,96885.0,96883.0,0.21791446]
[1763114232829,0.20642506,96888.0,96883.0,0.01148]
[1763114232974,0.00045634,96891.0,96883.0,0.01148]
[1763114233176,0.20642076,96890.0,96883.0,0.21791425]
[1763114233383,0.20642409,96888.0,96884.0,0.20643184]
[1763114233636,0.00045634,96891.0,96884.0,0.20643243]
[1763114233637,0.20641965,96890.0,96884.0,0.20643243]
[1763114233783,0.00045634,96891.0,96890.0,0.20641965]
[1763114234388,0.20687598,96891.0,96889.0,0.01141]
[1763114234594,0.20641965,96890.0,96889.0,0.01141]
[1763114235678,0.00145634,96891.0,96889.0,0.21783055]
[1763114235882,0.20787423,96891.0,96889.0,0.21783055]
[1763114236091,0.20641965,96890.0,96889.0,0.01141]
[1763114236535,0.20741965,96890.0,96889.0,0.01141]
[1763114236734,0.001,96890.0,96889.0,0.01141]
[1763114236937,0.20741965,96890.0,96889.0,0.01141]
[1763114237137,0.001,96890.0,96889.0,0.01141]
[1763114237757,0.20741965,96890.0,96889.0,0.01141]
[1763114238778,0.2064307,96885.0,96881.0,0.01141]
[1763114238974,0.20643474,96883.0,96881.0,0.01141]
[1763114239438,0.20643255,96884.0,96881.0,0.01141]
[1763114239574,0.20643669,96882.0,96881.0,0.01141]
[1763114239910,0.001,96890.0,96881.0,0.01141]
[1763114240129,0.20643669,96882.0,96881.0,0.01141]
[1763114240885,0.2064266,96887.0,96881.0,0.01141]
[1763114241084,0.20643669,96882.0,96879.0,0.20644226]
[1763114241486,0.20643405,96884.0,96874.0,0.01148]
[1763114241487,0.20643405,96884.0,96880.0,0.2064397]
[1763114241691,0.20643646,96883.0,96880.0,0.20643893]
[1763114241893,0.20643646,96883.0,96881.0,0.01141]
[1763114242233,0.00045634,96891.0,96886.0,0.20642731]
[1763114242448,0.00045634,96891.0,96890.0,0.0191781]
[1763114242655,0.00045634,96891.0,96890.0,0.22249965]
[1763114244992,0.00145634,96891.0,96890.0,0.22249965]
[1763114246192,0.00145634,96891.0,96890.0,0.22641965]
[1763114246792,0.00045634,96891.0,96890.0,0.22641965]
[1763114255819,0.00045634,96891.0,96890.0,0.20641965]
[1763114257336,0.00045634,96891.0,96890.0,0.002]
[1763114257484,0.00045634,96891.0,96890.0,0.22841965]
[1763114258157,0.00045634,96891.0,96890.0,0.20741965]
[1763114259208,0.00045634,96891.0,96890.0,0.20641965]
[1763114259406,0.00045634,96891.0,96889.0,0.2064213]
[1763114259804,0.00045634,96891.0,96888.0,0.01141]
[1763114260011,0.20641995,96890.0,96888.0,0.01141]
[1763114261374,0.20641965,96890.0,96888.0,0.01141]
[1763114261580,0.00045634,96891.0,96888.0,0.2178325]
[1763114261821,0.00045634,96891.0,96889.0,0.20642008]
[1763114262618,0.00045634,96891.0,96890.0,0.02469]
[1763114265062,0.00045634,96891.0,96890.0,0.23110965]
[1763114265484,0.00045634,96891.0,96890.0,0.20641965]
[1763114272796,0.00045634,96891.0,96890.0,0.22641965]
[1763114274713,0.00045634,96891.0,96890.0,0.20641965]
[1763114280663,0.00045634,96891.0,96888.0,0.01141]
[1763114280888,0.20642178,96889.0,96888.0,0.01141]
[1763114281102,0.20687432,96891.0,96888.0,0.21783355]
[1763114281309,0.2064201,96890.0,96888.0,0.21783355]
[1763114281507,0.00045634,96891.0,96889.0,0.02487]
[1763114281706,0.00045634,96891.0,96889.0,0.23129178]
[1763114282126,0.00045634,96891.0,96890.0,0.23128965]
[1763114282544,0.00045634,96891.0,96890.0,0.20641965]
[1763114282954,0.00045634,96891.0,96888.0,0.21783342]
[1763114283156,0.00045634,96891.0,96888.0,0.01141]
[1763114283368,0.00045634,96891.0,96889.0,0.20642075]
[1763114283571,0.00045634,96891.0,96890.0,0.20641965]
[1763114283776,0.00045634,96891.0,96890.0,0.02487]
[1763114283995,0.00045634,96891.0,96889.0,0.20642075]
[1763114284216,0.00045634,96891.0,96888.0,0.01141]
[1763114284429,0.00045634,96891.0,96881.0,0.01141]
[1763114284430,0.20642178,96889.0,96881.0,0.01141]
[1763114284655,0.00045634,96891.0,96881.0,0.01141]
[1763114284656,0.00045634,96891.0,96890.0,0.02747]
[1763114284860,0.00045634,96891.0,96890.0,0.23388965]
[1763114285161,0.00045634,96891.0,96890.0,0.01144]
[1763114285304,0.00045634,96891.0,96890.0,0.21785965]
[1763114285517,0.00045634,96891.0,96890.0,0.23703775]
[1763114285721,0.00045634,96891.0,96890.0,0.21785965]
[1763114290856,0.00045634,96891.0,96890.0,0.23785965]
[1763114295253,0.00045634,96891.0,96890.0,0.21785965]
[1763114295448,0.00045634,96891.0,96890.0,0.23785965]
[1763114297098,0.00045634,96891.0,96890.0,0.23765829]
[1763114297343,0.00045634,96891.0,96890.0,0.21765829]
[1763114301732,0.00045634,96891.0,96890.0,0.23765829]
[1763114303131,0.00045634,96891.0,96890.0,0.21765829]
[1763114306117,0.00045634,96891.0,96890.0,0.23765829]
[1763114308885,0.00045634,96891.0,96890.0,0.21765829]
[1763114309401,0.00045634,96891.0,96890.0,0.23765829]
[1763114310157,0.00045634,96891.0,96890.0,0.26863308]
[1763114312130,0.00045634,96891.0,96890.0,0.28781118]
[1763114312332,0.00045634,96891.0,96890.0,0.26863308]
[1763114313034,0.00045634,96891.0,96890.0,0.59163308]
[1763114314217,0.00045634,96891.0,96890.0,0.57163308]
[1763114318781,0.00045634,96891.0,96890.0,0.57263308]
[1763114319592,0.00045634,96891.0,96890.0,1.64289508]
[1763114319792,0.00045634,96891.0,96890.0,1.68631382]
[1763114319996,0.00045634,96891.0,96890.0,1.70332595]
[1763114320200,0.00045634,96891.0,96890.0,1.70432595]
[1763114320826,0.00045634,96891.0,96890.0,1.70332595]
[1763114321133,0.00045634,96891.0,96890.0,1.70432595]
[1763114321558,0.00045634,96891.0,96890.0,0.90740895]
[1763114321770,0.00045634,96891.0,96890.0,0.78127895]
[1763114322005,0.00045634,96891.0,96890.0,0.81722808]
[1763114322206,0.00045634,96891.0,96890.0,0.81522808]
[1763114322385,0.00045634,96891.0,96890.0,0.69134808]
[1763114322519,0.00045634,96891.0,96890.0,0.49422808]
[1763114322722,0.00045634,96891.0,96890.0,0.57363308]
[1763114322947,0.00045634,96891.0,96890.0,0.69751308]
[1763114323157,0.00045634,96891.0,96890.0,0.71851308]
[1763114323668,0.00045634,96891.0,96890.0,0.71751308]
[1763114323872,0.00045634,96891.0,96890.0,0.71551308]
[1763114324278,0.00045634,96891.0,96890.0,0.71651308]
[1763114324461,0.00045634,96891.0,96890.0,0.71751308]
[1763114324672,0.00045634,96891.0,96890.0,0.71551308]
[1763114324876,0.00045634,96891.0,96890.0,0.59163308]
[1763114325090,0.00045634,96891.0,96890.0,0.03097479]
[1763114325292,0.00045634,96891.0,96882.0,0.20643669]
[1763114325521,0.20641965,96890.0,96889.0,0.01179]
[1763114326758,0.20741965,96890.0,96889.0,0.01179]
[1763114326940,0.20643669,96882.0,96881.0,0.01141]
[1763114327149,0.001,96890.0,96881.0,0.01141]
[1763114327367,0.20642725,96887.0,96882.0,0.20643511]
[1763114327583,0.20642961,96886.0,96882.0,0.20643511]
[1763114327784,0.20643548,96883.0,96881.0,0.01141]
[1763114328752,0.20643243,96884.0,96882.0,0.02469]
[1763114328957,0.20643669,96882.0,96881.0,0.01141]
[1763114329750,0.20643243,96884.0,96881.0,0.01141]
[1763114329950,0.20643245,96886.0,96881.0,0.04639528]
[1763114330146,0.20642515,96888.0,96881.0,0.04639528]
[1763114330402,0.20642515,96888.0,96882.0,0.02469]
[1763114330630,0.00045634,96891.0,96890.0,0.02811]
[1763114331239,0.00045634,96891.0,96890.0,0.01179]
[1763114332551,0.00145634,96891.0,96890.0,0.01179]
[1763114332728,0.00145634,96891.0,96890.0,0.51179]
[1763114332944,0.09907195,96891.0,96890.0,0.5]
[1763114333339,0.10007195,96891.0,96890.0,0.5]
[1763114334274,0.00245634,96891.0,96890.0,0.5]
[1763114335538,0.20887386,96891.0,96890.0,0.5]
[1763114340784,0.00245634,96891.0,96890.0,0.70641965]
[1763114341010,0.00245634,96891.0,96890.0,0.20641965]
[1763114341704,0.00245634,96891.0,96890.0,0.22980965]
[1763114341922,0.00245634,96891.0,96890.0,0.20641965]
[1763114342327,0.00225605,96891.0,96890.0,0.22245965]
[1763114342532,0.00225605,96891.0,96890.0,0.20641965]
[1763114342705,0.00125605,96891.0,96890.0,0.20641965]
[1763114342906,0.00025605,96891.0,96890.0,0.20641965]
[1763114343623,0.00025605,96891.0,96890.0,0.22641965]
[1763114344739,0.00025605,96891.0,96890.0,0.24559775]
[1763114344954,0.00025605,96891.0,96890.0,0.22641965]
[1763114346007,0.00025605,96891.0,96890.0,0.53041965]
[1763114352299,0.00025605,96891.0,96890.0,0.5613913]
[1763114353300,0.00025605,96891.0,96890.0,0.60481004]
[1763114353684,0.00025605,96891.0,96890.0,0.62287834]
[1763114353884,0.00025605,96891.0,96890.0,1.00897934]
[1763114354129,0.00025605,96891.0,96890.0,1.00797934]
[1763114354528,0.00025605,96891.0,96890.0,1.00897934]
[1763114355387,0.00025605,96891.0,96890.0,1.00997934]
[1763114356234,0.00025605,96891.0,96890.0,1.00897934]
[1763114356458,0.00025605,96891.0,96890.0,1.01097934]
[1763114357241,0.00025605,96891.0,96890.0,1.00997934]
[1763114357663,0.00025605,96891.0,96890.0,1.02997934]
[1763114357884,0.00025605,96891.0,96890.0,1.01197934]
[1763114358585,0.00025605,96891.0,96890.0,1.13385934]
[1763114358738,0.00025605,96891.0,96890.0,1.13185934]
[1763114358941,0.00025605,96891.0,96890.0,1.13585934]
[1763114359195,0.00025605,96891.0,96890.0,1.01197934]
[1763114359406,0.00025605,96891.0,96890.0,1.13585934]
[1763114359615,0.00025605,96891.0,96890.0,0.96325834]
[1763114359967,0.00025605,96891.0,96890.0,1.46325834]
[1763114360403,0.00025605,96891.0,96890.0,1.46125834]
[1763114360605,0.00025605,96891.0,96890.0,1.46225834]
[1763114360813,0.00025605,96891.0,96890.0,1.46025834]
[1763114361019,0.00025605,96891.0,96890.0,1.46125834]
[1763114361223,0.00025605,96891.0,96890.0,0.78281004]
[1763114361378,0.00025605,96891.0,96890.0,0.7393913]
[1763114361585,0.00025605,96891.0,96890.0,0.8632713]
[1763114361981,0.00025605,96891.0,96890.0,1.0728033]
[1763114362254,0.00025605,96891.0,96890.0,1.1862713]
[1763114362992,0.00025605,96891.0,96890.0,1.0623913]
[1763114363392,0.00025605,96891.0,96890.0,1.1862713]
[1763114364232,0.00025605,96891.0,96890.0,1.2062713]
[1763114364436,0.00025605,96891.0,96890.0,1.1862713]
[1763114365514,0.00025605,96891.0,96890.0,1.1852713]
[1763114366119,0.00025605,96891.0,96890.0,1.0623913]
[1763114366341,0.00025605,96891.0,96890.0,1.0813913]
[1763114366545,0.00025605,96891.0,96890.0,1.1005694]
[1763114366749,0.00025605,96891.0,96890.0,1.0813913]
[1763114367186,0.00025605,96891.0,96890.0,0.502]
[1763114367340,0.20667357,96891.0,96890.0,0.501]
[1763114367919,0.20667357,96891.0,96890.0,0.5]
[1763114368208,0.20667357,96891.0,96890.0,0.501]
[1763114368418,0.20767357,96891.0,96890.0,0.501]
[1763114369194,0.00125605,96891.0,96890.0,0.5]
[1763114369561,0.00225605,96891.0,96890.0,0.5]
[1763114369888,0.00225605,96891.0,96890.0,0.70641965]
[1763114370105,0.00225605,96891.0,96890.0,0.5]
[1763114370299,0.00225605,96891.0,96890.0,0.5191781]
[1763114370547,0.20867357,96891.0,96890.0,0.5]
[1763114370727,0.00225605,96891.0,96890.0,0.5]
[1763114370986,0.20867357,96891.0,96890.0,0.5]
[1763114373346,0.00225605,96891.0,96890.0,0.5]
[1763114375436,0.00225605,96891.0,96890.0,0.70641965]
[1763114375627,0.00225605,96891.0,96890.0,0.5]
[1763114375868,0.00225605,96891.0,96890.0,0.70641965]
[1763114376915,0.20867357,96891.0,96890.0,0.5]
[1763114377648,0.00225605,96891.0,96890.0,0.5]
[1763114377848,0.00225605,96891.0,96890.0,0.70641965]
[1763114381192,0.00225605,96891.0,96890.0,0.20641965]
[1763114383028,0.20642123,96890.0,96888.0,0.02446]
[1763114383235,0.20642151,96890.0,96888.0,0.03475528]
[1763114383841,0.20767382,96891.0,96888.0,0.03475528]
[1763114384036,0.00125605,96891.0,96889.0,0.20642178]
[1763114384239,0.001,96890.0,96889.0,0.20642178]
[1763114384747,0.20741965,96890.0,96888.0,0.03475528]
[1763114384891,0.20641987,96890.0,96888.0,0.01029528]
[1763114385085,0.20642178,96889.0,96888.0,0.01029528]
[1763114387357,0.20842178,96889.0,96888.0,0.01029528]
[1763114387956,0.20742178,96889.0,96888.0,0.01029528]
[1763114388157,0.20642178,96889.0,96888.0,0.01029528]
[1763114388355,0.20742178,96889.0,96888.0,0.01029528]
[1763114389734,0.20842178,96889.0,96888.0,0.01029528]
[1763114390938,0.002,96889.0,96888.0,0.01029528]
[1763114391178,0.002,96889.0,96888.0,0.21671919]
[1763114391383,0.002,96889.0,96888.0,0.01029528]
[1763114391384,0.20842178,96889.0,96888.0,0.01029528]
[1763114396026,0.56100889,96889.0,96888.0,0.01029528]
[1763114396230,0.57484052,96889.0,96888.0,0.01029528]
[1763114396780,0.57384052,96889.0,96888.0,0.01029528]
[1763114397189,0.57484052,96889.0,96888.0,0.01029528]
[1763114397593,0.57384052,96889.0,96888.0,0.01029528]
[1763114398991,0.57484052,96889.0,96888.0,0.01029528]
[1763114400672,0.52943882,96881.0,96880.0,0.0191781]
[1763114400881,0.57285756,96881.0,96880.0,0.0191781]
[1763114401233,0.57286182,96879.0,96878.0,0.01029528]
[1763114401458,0.20643882,96881.0,96878.0,0.01029528]
[1763114401672,0.002,96889.0,96887.0,0.01244]
[1763114401877,0.001,96889.0,96888.0,0.22211391]
[1763114402229,0.001,96889.0,96888.0,0.21671919]
[1763114402563,0.00025605,96891.0,96888.0,0.21671919]
[1763114402564,0.00025605,96891.0,96890.0,0.20641965]
[1763114403527,0.00025605,96891.0,96890.0,0.22641965]
[1763114403951,0.00125605,96891.0,96890.0,0.22641965]
[1763114404154,0.00125605,96891.0,96890.0,0.02]
[1763114404376,0.00125605,96891.0,96889.0,0.20642157]
[1763114405008,0.00125605,96891.0,96888.0,0.01029528]
[1763114405182,0.00125605,96891.0,96888.0,0.21671755]
[1763114405523,0.00125605,96891.0,96888.0,0.01029528]
[1763114405524,0.00025605,96891.0,96888.0,0.01029528]
[1763114405927,0.2066744,96891.0,96888.0,0.01029528]
[1763114406162,0.00025605,96891.0,96888.0,0.01029528]
[1763114406370,0.00025605,96891.0,96889.0,0.20642073]
[1763114406575,0.00025605,96891.0,96888.0,0.01029528]
[1763114406741,0.20641965,96890.0,96888.0,0.01029528]
[1763114407127,0.09761561,96889.0,96888.0,0.01029528]
[1763114407442,0.42061561,96889.0,96888.0,0.01029528]
[1763114408523,0.2076757,96891.0,96888.0,0.01029528]
[1763114408524,0.00125605,96891.0,96888.0,0.01029528]
[1763114408725,0.09761561,96889.0,96888.0,0.01029528]
[1763114409262,0.09961561,96889.0,96888.0,0.01029528]
[1763114409668,0.00125605,96891.0,96888.0,0.01029528]
[1763114409860,0.09761561,96889.0,96888.0,0.01029528]
[1763114410062,0.09861561,96889.0,96888.0,0.01029528]
[1763114410282,0.09961561,96889.0,96888.0,0.01029528]
[1763114410447,0.09861561,96889.0,96888.0,0.01029528]
[1763114411307,0.09761561,96889.0,96888.0,0.01029528]
[1763114411523,0.46403435,96889.0,96888.0,0.01029528]
[1763114411662,0.20647732,96863.0,96855.0,0.02352]
[1763114411862,0.20647732,96863.0,96861.0,0.02181528]
[1763114412994,0.20647681,96864.0,96861.0,0.02181528]
[1763114413188,0.20647805,96863.0,96861.0,0.02181528]
[1763114413640,0.42061561,96889.0,96861.0,0.02181528]
[1763114413842,0.20646532,96869.0,96863.0,0.20647718]
[1763114414055,0.30404591,96889.0,96861.0,0.02181528]
[1763114414254,0.30404591,96889.0,96872.0,0.20645742]
[1763114414255,0.20645042,96876.0,96872.0,0.20645742]
[1763114414465,0.11943089,96889.0,96872.0,0.01029528]
[1763114414667,0.11943089,96889.0,96875.0,0.20645108]
[1763114414668,0.20644302,96880.0,96875.0,0.20645108]
[1763114414873,0.20644158,96880.0,96875.0,0.20645108]
[1763114415060,0.20644326,96879.0,96875.0,0.20645108]
[1763114415269,0.20645374,96874.0,96873.0,0.01152]
[1763114415419,0.09761561,96889.0,96873.0,0.01152]
[1763114415420,0.20645087,96876.0,96873.0,0.01152]
[1763114415613,0.20645257,96875.0,96873.0,0.01152]
[1763114415814,0.20645587,96873.0,96872.0,0.01029528]
[1763114417477,0.20645422,96874.0,96872.0,0.01029528]
[1763114417715,0.001,96876.0,96872.0,0.01029528]
[1763114417916,0.001,96876.0,96874.0,0.20645298]
[1763114418276,0.001,96876.0,96875.0,0.02352]
[1763114418643,0.20642552,96888.0,96884.0,0.01152]
[1763114418644,0.20642948,96886.0,96884.0,0.01152]
[1763114418850,0.20641454,96893.0,96887.0,0.01615]
[1763114418851,0.20641357,96893.0,96887.0,0.01615]
[1763114419051,0.20640374,96898.0,96889.0,0.20642129]
[1763114419275,0.20639409,96902.0,96889.0,0.20642129]
[1763114419493,0.01031885,96910.0,96884.0,0.02181528]
[1763114419494,0.09761561,96901.0,96884.0,0.02181528]
[1763114419667,0.09761561,96901.0,96884.0,0.01029528]
[1763114419668,0.20642642,96887.0,96884.0,0.01029528]
[1763114419886,0.002,96886.0,96884.0,0.01029528]
[1763114420082,0.20842902,96886.0,96884.0,0.01029528]
[1763114420386,0.01031885,96910.0,96885.0,0.02352]
[1763114420591,0.20640062,96899.0,96886.0,0.20642751]
[1763114420794,0.01031885,96910.0,96884.0,0.01029528]
[1763114420795,0.20643004,96886.0,96884.0,0.01029528]
[1763114422384,0.20743004,96886.0,96884.0,0.01029528]
[1763114423408,0.20843004,96886.0,96884.0,0.01029528]
[1763114424981,0.002,96886.0,96884.0,0.01029528]
[1763114425388,0.20842957,96886.0,96884.0,0.01029528]
[1763114426824,0.002,96886.0,96885.0,0.2299503]
[1763114427280,0.002,96886.0,96885.0,0.2064303]
[1763114427681,0.20637975,96909.0,96890.0,0.22641965]
[1763114427992,0.09761561,96919.0,96890.0,0.22641965]
[1763114427993,0.206388,96905.0,96890.0,0.22641965]
[1763114428163,0.20639228,96903.0,96890.0,0.22641965]
[1763114428580,0.20638585,96906.0,96890.0,0.22641965]
[1763114428800,0.20640189,96899.0,96890.0,0.22641965]
[1763114429020,0.2064042,96898.0,96890.0,0.20641965]
[1763114429208,0.20640474,96897.0,96890.0,0.20641965]
[1763114429387,0.20640083,96899.0,96890.0,0.20641965]
[1763114429548,0.20639605,96902.0,96890.0,0.20641965]
[1763114429758,0.20638394,96907.0,96890.0,0.20641965]
[1763114430279,0.09761561,96899.0,96884.0,0.01029528]
[1763114430487,0.20641052,96895.0,96885.0,0.20642827]
[1763114430688,0.09770979,96899.0,96884.0,0.01029528]
[1763114430689,0.09770979,96899.0,96884.0,0.21672758]
[1763114430884,0.20642833,96886.0,96884.0,0.01029528]
[1763114431291,0.001,96891.0,96884.0,0.01029528]
[1763114431491,9.418e-05,96899.0,96885.0,0.02456]
[1763114431699,0.09761561,96898.0,96885.0,0.02456]
[1763114431934,0.20641455,96893.0,96885.0,0.02456]
[1763114432152,9.418e-05,96899.0,96897.0,0.01643]
[1763114432367,9.418e-05,96899.0,96898.0,0.01643]
[1763114432821,9.418e-05,96899.0,96897.0,0.21669915]
[1763114433273,9.418e-05,96899.0,96898.0,0.02456]
[1763114434062,0.00109418,96899.0,96898.0,0.02456]
[1763114434651,0.00209418,96899.0,96898.0,0.02456]
[1763114435275,0.00109418,96899.0,96898.0,0.02456]
[1763114435491,0.00209418,96899.0,96898.0,0.02456]
[1763114438044,0.00109418,96899.0,96898.0,0.02456]
[1763114438253,9.418e-05,96899.0,96897.0,0.01029528]
[1763114438528,0.2064026,96898.0,96897.0,0.01029528]
[1763114439655,0.57282134,96898.0,96897.0,0.01029528]
[1763114439885,0.20648149,96861.0,96857.0,0.02456]
[1763114440105,0.01032204,96880.0,96860.0,0.01134]
[1763114440329,0.20646013,96871.0,96864.0,0.20647414]
[1763114440536,0.20646403,96870.0,96864.0,0.20647414]
[1763114440741,0.09761561,96879.0,96860.0,0.01134]
[1763114440903,0.20647543,96864.0,96860.0,0.01134]
[1763114441102,0.20645882,96872.0,96860.0,0.01179634]
[1763114441301,0.20644521,96878.0,96860.0,0.03635634]
[1763114441504,0.20645445,96874.0,96861.0,0.20648145]
[1763114441715,0.09761561,96879.0,96865.0,0.20647103]
[1763114441716,0.20646416,96870.0,96865.0,0.20647103]
[1763114441919,0.20646722,96868.0,96862.0,0.20647787]
[1763114442490,0.20646722,96868.0,96863.0,0.20647583]
[1763114442701,0.20646006,96872.0,96863.0,0.20647583]
[1763114442984,0.01032204,96880.0,96860.0,0.03635634]
[1763114443188,0.2064566,96873.0,96868.0,0.20646581]
[1763114443389,0.20645162,96875.0,96868.0,0.21676109]
[1763114443608,0.206455,96874.0,96869.0,0.01134]
[1763114443767,0.20646135,96871.0,96869.0,0.01134]
[1763114444182,0.01032204,96880.0,96873.0,0.20645455]
[1763114444351,0.12860223,96899.0,96882.0,0.02777]
[1763114444554,0.20643159,96885.0,96882.0,0.02163528]
[1763114444763,0.30404885,96884.0,96882.0,0.02163528]
[1763114445149,0.20640473,96897.0,96882.0,0.02163528]
[1763114445150,0.20642682,96887.0,96882.0,0.02163528]
[1763114445354,0.20642931,96886.0,96882.0,0.02163528]
[1763114445561,0.001,96885.0,96882.0,0.02163528]
[1763114446374,0.001,96885.0,96883.0,0.20643355]
[1763114446578,0.001,96885.0,96882.0,0.22807131]
[1763114446827,0.001,96887.0,96882.0,0.22807131]
[1763114446828,0.001,96887.0,96884.0,0.20643208]
[1763114447015,0.001,96887.0,96885.0,0.20642967]
[1763114447220,0.20643307,96884.0,96882.0,0.02163528]
[1763114447429,0.20642963,96886.0,96882.0,0.02163528]
[1763114447637,0.2064266,96887.0,96882.0,0.22807066]
[1763114447850,0.2064266,96887.0,96883.0,0.20643416]
[1763114447851,0.002,96885.0,96883.0,0.20643416]
[1763114448076,0.001,96885.0,96883.0,0.20643416]
[1763114448289,0.20743243,96884.0,96882.0,0.01029528]
[1763114448498,0.001,96884.0,96882.0,0.01029528]
[1763114448710,0.09761561,96899.0,96882.0,0.01029528]
[1763114448711,0.20643077,96885.0,96882.0,0.01029528]
[1763114448929,0.001,96886.0,96884.0,0.2064317]
[1763114449144,0.09761561,96899.0,96882.0,0.01029528]
[1763114449145,0.20641014,96895.0,96885.0,0.20642924]
[1763114449385,0.20642101,96890.0,96885.0,0.20642918]
[1763114449596,0.20641386,96893.0,96885.0,0.02456]
[1763114449798,0.20641118,96894.0,96889.0,0.20642002]
[1763114449998,0.20641361,96893.0,96885.0,0.02456]
[1763114450204,0.20642701,96887.0,96885.0,0.02456]
[1763114450415,0.20642707,96887.0,96885.0,0.02456]
[1763114450698,0.20642555,96888.0,96885.0,0.02456]
[1763114450883,0.20642698,96887.0,96885.0,0.02456]
[1763114451313,0.20643456,96883.0,96882.0,0.01029528]
[1763114453993,0.20743456,96883.0,96882.0,0.01029528]
[1763114454729,0.001,96883.0,96882.0,0.01029528]
[1763114456800,0.20641664,96892.0,96891.0,0.02777]
[1763114457892,0.2065531,96892.0,96891.0,0.01134]
[1763114458830,0.20641965,96890.0,96883.0,0.02456]
[1763114459057,0.20641752,96891.0,96887.0,0.01134]
[1763114459259,0.20642391,96888.0,96887.0,0.01134]
[1763114460180,0.20642155,96890.0,96887.0,0.01134]
[1763114460382,0.00113646,96892.0,96889.0,0.20641999]
[1763114460595,0.00013646,96892.0,96888.0,0.20642391]
[1763114460901,0.00013646,96892.0,96891.0,0.20641752]
[1763114461600,0.00013646,96892.0,96891.0,0.22905752]
[1763114462036,0.00113646,96892.0,96891.0,0.22905752]
[1763114462641,0.00113646,96892.0,96891.0,0.20641752]
[1763114463278,0.00013646,96892.0,96891.0,0.20641752]
[1763114466764,0.00013646,96892.0,96891.0,0.52941752]
[1763114468154,0.00013646,96892.0,96891.0,0.53041752]
[1763114469718,0.00013646,96892.0,96891.0,0.71239852]
[1763114469924,0.00013646,96892.0,96891.0,0.75581726]
[1763114470618,0.00013646,96892.0,96891.0,0.75481726]
[1763114470836,0.00013646,96892.0,96891.0,0.75881726]
[1763114471039,0.00013646,96892.0,96891.0,0.65729752]
[1763114471838,0.00013646,96892.0,96891.0,0.53341752]
[1763114472069,0.00013646,96892.0,96891.0,0.65729752]
[1763114472273,0.00013646,96892.0,96891.0,0.65529752]
[1763114472475,0.00013646,96892.0,96891.0,0.65629752]
[1763114473011,0.00013646,96892.0,96891.0,0.65429752]
[1763114473421,0.00013646,96892.0,96891.0,0.65529752]
[1763114474435,0.00013646,96892.0,96891.0,0.88739652]
[1763114475423,0.00013646,96892.0,96891.0,0.93081526]
[1763114476749,0.00013646,96892.0,96891.0,0.93815925]
[1763114476979,0.00013646,96892.0,96891.0,0.92696125]
[1763114477886,0.00013646,96892.0,96891.0,0.72968325]
[1763114478291,0.00013646,96892.0,96891.0,0.77951572]
[1763114478716,0.00013646,96892.0,96891.0,0.55143772]
[1763114478919,0.00013646,96892.0,96891.0,0.35231772]
[1763114479082,0.00013646,96892.0,96891.0,0.67531772]
[1763114479524,0.00013646,96892.0,96891.0,0.55143772]
[1763114479726,0.00013646,96892.0,96891.0,0.22743772]
[1763114480080,0.00013646,96892.0,96891.0,0.55143772]
[1763114480278,0.00013646,96892.0,96891.0,0.22743772]
[1763114480522,0.00013646,96892.0,96891.0,0.22843772]
[1763114480964,0.00013646,96892.0,96891.0,0.22743772]
[1763114481164,0.00013646,96892.0,96891.0,0.22643772]
[1763114481697,0.00013646,96892.0,96891.0,0.22743772]
[1763114482030,0.00013646,96892.0,96891.0,0.22643772]
[1763114484100,0.00013646,96892.0,96891.0,0.22743772]
[1763114484752,0.00013646,96892.0,96891.0,0.22843772]
[1763114485311,0.00013646,96892.0,96891.0,1.10099472]
[1763114486392,0.00013646,96892.0,96891.0,0.55143772]
[1763114486599,0.00013646,96892.0,96891.0,0.68894972]
[1763114486899,0.00013646,96892.0,96891.0,0.55143772]
[1763114487118,0.00013646,96892.0,96891.0,0.56173218]